{"text_format":"1","workbook":"xlsx","n_sheets":7,"sheets":["Prompt","C100","C200","C300","C400","C500","Enviar"],"not_rendered":{"charts":0,"images":6,"macros":1,"external_links":0,"defined_names":1,"comments":0,"pivot_tables":0},"unopened":[],"bounds":{"document_bytes":16777216,"sheet_cells":100000,"rows_first":2000,"rows_last":500,"rows_between":2000,"halvings":0,"cell_chars":16384,"cell_head_chars":4096},"cells_cut":0,"cells_raw":0,"read":"whole","date_system":"1900"}

{"sheet":"Prompt","index":0,"n_rows":79,"n_cols":4,"rows_kept":79,"cut":false,"hidden":true,"merged":[[1,3,2,6],[4,1,6,8],[43,1,44,8],[78,1,79,8],[9,1,10,8]]}
[]
[null,null,null,"¡ATENCIÓN!"]
[]
[]
[null,"Para hacer uso de las funcionalidades de esta Cédula Electrónica debe habilitar macros"]
[]
[]
[]
[]
[null,"Si utiliza Excel 2013 siga el siguiente procedimiento:"]
[]
[]
[]
[]
[]
[]
[]
[]
[]
[]
[]
[]
[]
[]
[]
[]
[]
[]
[]
[]
[]
[]
[]
[]
[]
[]
[]
[]
[]
[]
[]
[]
[]
[null,"Si utiliza Excel 2007 siga el siguiente procedimiento:"]
[]
[]
[]
[]
[]
[]
[]
[]
[]
[]
[]
[]
[]
[]
[]
[]
[]
[]
[]
[]
[]
[]
[]
[]
[]
[]
[]
[]
[]
[]
[]
[]
[]
[]
[null,"Si utiliza Excel 2000, 2002, 2003 siga el siguiente procedimiento:"]

{"sheet":"C100","index":1,"n_rows":186,"n_cols":22,"rows_kept":186,"cut":false,"hidden":false,"merged":[[167,16,167,20],[88,14,88,20],[37,1,37,22],[63,14,63,20],[129,5,129,9],[130,18,130,21],[143,16,143,20],[28,5,28,20],[30,16,30,20],[1,4,1,19],[2,4,2,19],[3,4,3,19],[1,20,1,21],[2,20,3,21],[23,1,23,22],[26,5,26,7],[26,19,26,20],[30,5,30,13],[185,5,185,9],[176,5,176,9],[115,5,115,9],[116,5,116,9],[49,5,49,10]]}
[]
[null,null,null,null,"CENSO EDUCATIVO 2024",null,null,null,null,null,null,null,null,null,null,null,null,null,null,null,"CÉDULA"]
[null,null,null,null,"EDUCACIÓN BÁSICA ESPECIAL - INICIAL",null,null,null,null,null,null,null,null,null,null,null,null,null,null,null,"8A"]
[null,null,null,null,"NO ESCOLARIZADA"]
[null,"Versión :",null,"GA - 1"]
[null,"INSTRUCCIONES DEL FORMATO ELECTRÓNICO "]
[]
[]
[]
[]
[]
[]
[]
[]
[]
[]
[]
[]
[]
[]
[]
[]
[]
[null,"IDENTIFICACIÓN DEL SERVICIO EDUCATIVO"]
[]
[]
[null,"1. CÓDIGO MODULAR :",null,null,null,null,null,null,null,null,null,null,null,null,null,null,null,"2. CÓDIGO DE LOCAL EDUCATIVO :"]
[]
[null,"3. NOMBRE DEL SERVICIO :"]
[]
[null,"4. DISTRITO :",null,null,null,null,null,null,null,null,null,null,null,null,null,"LOCALIDAD :"]
[]
[]
[]
[null,"GESTIÓN DE LA INSTITUCIÓN EDUCATIVA :",null,null,null,null,null,null,null," 1 - Pública de gestión directa",null,null,null,""," 2 - Pública de gestión privada",null,null,null,""," 3 - Privada"]
[]
[]
[null,"100. CARACTERÍSTICAS DEL SERVICIO EDUCATIVO"]
[]
[null,"101. EN LOS ÚLTIMOS TRES MESES, ¿QUÉ PROGRAMAS O CAMPAÑAS DE SALUD ",null,null,null,null,null,null,null,null,null,null,"103. EL SERVICIO/NIVEL EDUCATIVO CONSIDERA 7 ASPECTOS COMO MÍNIMO"]
[null,null,"SE OFRECIERON A LOS ESTUDIANTES EN ESTE SERVICIO/NIVEL EDUCATIVO?",null,null,null,null,null,null,null,null,null,null,"EN SU ESTRUCTURA DEL DOCUMENTO DE GESTIÓN?"]
[]
[null,null,"Marque con una “X”, una o más opciones",null,null,null,null,null,null,null,null,null,null,"Sí  ",null,null,null,"No  ",""]
[]
[null,null,null,null,"Qali Warma"]
[null,null,null,null,"Cuna más",null,null,null,null,null,null,null,null,null,"Marque con una “X”, una o más opciones"]
[null,null,null,null,"Vacunación"]
[null,null,null,null,"Control de Crecimiento y Desarrollo",null,null,null,null,null,null,null,null,null,null,"Identidad"]
[null,null,null,null,"Despistaje de anemia",null,null,null,null,null,null,null,null,null,null,"Diagnóstico de la gestión escolar"]
[null,null,null,null,"Otro","",null,null,null,null,null,null,null,null,null,"Las normas de convivencia"]
[null,null,null,null,"Ninguno",null,null,null,null,null,null,null,null,null,null,"Plan de estudios"]
[null,null,null,null,null,null,null,null,null,null,null,null,null,null,null,"Lineamientos pedagógicos"]
[null,"102. ¿EL SERVICIO/NIVEL EDUCATIVO CUENTA CON DOCUMENTO DE GESTIÓN?",null,null,null,null,null,null,null,null,null,null,null,null,null,"Programación de actividades"]
[null,null,null,null,null,null,null,null,null,null,null,null,null,null,null,"Calendarización",null,""]
[null,null,"Sí  ",null,null,null,"No  ","",null,"Pase a la pregunta 104"]
[]
[]
[null,"104. USTED SEÑOR(A) DIRECTOR(A), ¿TIENE AULA A CARGO U HORAS LECTIVAS",null,null,null,null,null,null,null,null,null,null,"106. ¿EN SU SERVICIO/NIVEL EDUCATIVO SE HA EXPERIMENTADO ALGUNA DE LAS"]
[null,null,"PARA EL PRESENTE AÑO?",null,null,null,null,null,null,null,null,null,null,"SIGUIENTES DIFICULTADES RELACIONADAS A QUE EL DIRECTOR (A) TENGA"]
[null,null,null,null,null,null,null,null,null,null,null,null,null,"AULA A CARGO?"]
[null,null,"Sí  ",null,null,null,"No  ",null,null,"Pase a la pregunta 107"]
[null,null,null,null,null,null,null,null,null,null,null,null,null,"Seleccione “Si” o “No” según corresponda en cada acción"]
[null,"105. ¿CUÁL DE LAS SIGUIENTES AFIRMACIONES CONSIDERA QUE EXPRESA MEJOR"]
[null,null,"SU OPINIÓN RESPECTO A QUE EL DIRECTOR(A) DE ESTE PRITE TENGA ASIGNADA",null,null,null,null,null,null,null,null,null,null,"NRO.","DIFICULTAD",null,null,null,null,null,null," SI - NO"]
[null,null,"AULA A CARGO U HORAS LECTIVAS?",null,null,null,null,null,null,null,null,null,null,1,"Se diﬁculta realizar el monitoreo a la práctica pedagógica"]
[null,null,null,null,null,null,null,null,null,null,null,null,null,2,"Se diﬁculta realizar gestiones con aliados para la mejora de la IE"]
[null,null,"Marque con una “X” una opción",null,null,null,null,null,null,null,null,null,null,3,"Se diﬁculta la gestión de la convivencia escolar"]
[null,null,null,"Es beneﬁciosa para el cumplimiento de mis funciones como director de IIEE",null,null,null,null,null,null,null,null,null,4,"Se interrumpe las clases para atender funciones de dirección"]
[null,null,null,"Es indiferente para el cumplimiento de mis funciones como director de IIEE",null,null,null,null,null,null,null,null,null,5,"Se debe dejar solos a los niños en el aula para atender tareas de la …"]
[null,null,null,"Es perjudicial para el cumplimiento de mis funciones como director de IIEE",null,null,null,null,null,null,null,null,null,6,"Se experimenta sobrecarga laboral, por lo que se debe laborar fuera …"]
[null,null,null,null,null,null,null,null,null,null,null,null,null,7,"Se experimenta problemas de salud"]
[null,"107. EN SU OPINIÓN, SI A UN(A) DIRECTOR(A) SE LE QUIERE ASIGNAR AULA",null,null,null,null,null,null,null,null,null,null,null,8,"Se experimenta malestar psicosocial, estrés o agotamiento laboral"]
[null,null,"A CARGO, ¿CUÁNTAS SECCIONES COMO MÁXIMO DEBERÍA TENER LA IE PARA",null,null,null,null,null,null,null,null,null,null,9,"Se experimenta problemas personales, como pasar menos tiempo …"]
[null,null,"QUE SU DESEMPEÑO NO SE VEA AFECTADO?"]
[]
[null,null,"Marque con una “X” una opción"]
[null,null,null,"1 sección",null,null,null,null,"5 secciones"]
[null,null,null,"2 secciones",null,null,null,null,"6 secciones"]
[null,null,null,"3 secciones",null,null,null,null,"7 o más secciones"]
[null,null,null,"4 secciones",null,null,null,null,"Ninguna"]
[]
[]
[null,"ACOMPAÑAMIENTO Y SOPORTE PEDAGÓGICO"]
[null,"108. DESDE EL INICIO DEL AÑO LECTIVO HASTA LA FECHA DE LA APLICACIÓN DEL",null,null,null,null,null,null,null,null,null,null,"109. ¿CUÁLES DE LAS SIGUIENTES ACCIONES HA REALIZADO EL ESPECIALISTA"]
[null,null,"CENSO EDUCATIVO 2024, ESTE SERVICIO/NIVEL EDUCATIVO, ¿HA RECIBIDO",null,null,null,null,null,null,null,null,null,null,"PEDAGÓGICO AL MOMENTO DE BRINDAR LA ASISTENCIA TÉCNICA AL"]
[null,null,"COMUNICACIÓN O PARTICIPACIÓN PRESENCIAL O VIRTUAL DEL ESPECIALISTA",null,null,null,null,null,null,null,null,null,null,"SERVICIO/NIVEL EDUCATIVO?"]
[null,null,"PEDAGÓGICO DE LA UGEL, CON LA FINALIDAD DE BRINDAR ASISTENCIA TÉCNICA?"]
[null,null,null,null,null,null,null,null,null,null,null,null,null,"Seleccione “Si” o “No” según corresponda en cada acción"]
[null,null,null,null,null,null,null,null,null,null,null,null,null,"NRO.","ACCIONES",null,null,null,null,null,null," SI - NO"]
[null,null,null,null,null,null,null,null,null,null,null,null,{"$f":"COUNTIF(V90:V103,\"NO\")","v":0},1,"Pregunto sobre las necesidades y demandas pedagógicas … "]
[null,null,"Sí  ",null,null,"¿Cuántas veces?",null,null,null,null,null,null,null,2,"Observó alguna sesión o actividades de aprendizaje, ya sea de …"]
[null,null,null,null,null,null,"Presencial:",null,null,null,null,null,null,3,"Sostuvó un clima de confianza y proximidad durante sus acciones …"]
[null,null,null,null,null,null,"Virtual/Remota:",null,null,null,null,null,null,4,"Generó algún espacio para que el director(a) del servicio/nivel …"]
[null,null,null,null,null,null,null,null,null,null,null,null,null,5,"Escuchó y respondió las dudas y consultas realizadas por usted"]
[null,null,"No  ",null,null,"Pase a la pregunta 110.",null,null,null,null,null,null,null,6,"Las orientaciones brindadas atendieron las necesidades y …"]
[null,null,null,null,null,null,null,null,null,null,null,null,null,7,"Brindó orientaciones para la mejora de las prácticas pedagógicas"]
[null,null,null,null,null,null,null,null,null,null,null,null,null,8,"Sugirió estrategias pedagógicas contextualizadas para mejorar las practicas"]
[null,null,null,null,null,null,null,null,null,null,null,null,null,9,"Dio a conocer las fortalezas del servicio / nivel educativo"]
[null,null,null,null,null,null,null,null,null,null,null,null,null,10,"Se asumieron compromisos y/o acuerdos para la mejora"]
[null,null,null,null,null,null,null,null,null,null,null,null,null,11,"Recibió asistencia técnica respecto a las actividades del Programa"]
[null,null,null,null,null,null,null,null,null,null,null,null,null,12,"Brindó orientaciones y/o acompañamientos periódicos …"]
[null,null,null,null,null,null,null,null,null,null,null,null,null,13,"Brindó orientaciones y/o acompañamientos periódicos para la Implemen …"]
[null,null,null,null,null,null,null,null,null,null,null,null,null,null,null,null,null,null,null,null,null,{"$f":"COUNTIF(V90:V102,\"SI\")+COUNTIF(V90:V102,\"NO\")","v":0}]
[]
[null,"110. DURANTE EL AÑO 2023 Y HASTA LA FECHA DE LA APLICACIÓN DEL CENSO",null,null,null,null,null,null,null,null,null,null,"112. DURANTE EL AÑO 2023, EN PROMEDIO, ¿CUÁNTAS HORAS POR SEMANA Y"]
[null,null,"EDUCATIVO 2024, EL PRITE, ¿HA RECIBIDO ALGÚN TIPO DE ACOMPAÑAMIENTO",null,null,null,null,null,null,null,null,null,null,"REUNIONES POR MES DE TRABAJO COLEGIADO O TRANSDISCIPLINARIO REALIZÓ"]
[null,null,"DIRIGIDO AL DIRECTOR(A), COORDINADOR(A) O RESPONSABLE DEL PRITE?",null,null,null,null,null,null,null,null,null,null,"CON EL PERSONAL DE ESTE PRITE?"]
[]
[null,null,"Sí",null,null,null," No  ",null,null,null,null,null,null,"Promedio de horas de reunión por semana con tutoras"]
[]
[null,null,null,null,"¿Que Institución le brindó el acompañamiento?",null,null,null,null,null,null,null,null,"Promedio de reuniones por mes con tutoras/res"]
[null,null,null,null,"Marque con una “X” una o más opciones"]
[]
[null,null,null,null,"DRE/GRE",null,null,null,null,null,null,null,"113. ¿DURANTE LOS ÚLTIMOS DOS (02) AÑOS, EL PERSONAL DE ESTE PRITE (YA SEA"]
[null,null,null,null,"UGEL",null,null,null,null,null,null,null,null,"PERSONAL DIRECTIVO/JERARQUICO, TUTOR/TUTORA, O PERSONAL"]
[null,null,null,null,"MINEDU",null,null,null,null,null,null,null,null,"ADMINISTRATIVO), HA RECIBIDO CAPACITACIÓN EN TEMAS DE EDUCACIÓN"]
[null,null,null,null,"OTROS","",null,null,null,null,null,null,null,"INCLUSIVA O ATENCIÓN A LA DIVERSIDAD DE PARTE DE ESPECIALISTAS DE"]
[null,null,null,{"$f":"CONCATENATE(D114,D115)","v":""},null,null,null,null,null,null,null,null,null,"DRE/GRE Y/O UGEL, O ALGUNA OTRA INSTITUCIÓN?"]
[]
[null,null,"“Sólo si marco DRE/GRE o UGEL”",null,null,null,null,null,null,null,null,null,null,"Sí",null,null,null,"No"]
[null,null,"¿Sobre qué temas recibió acompañamiento como director por parte de la DRE/GRE/UGEL?"]
[null,null,"Marque con una “X”, una o más opciones",null,null,null,null,null,null,null,null,null,null,null,null,"¿Qué instancia o institución brindó la capacitación?"]
[null,null,null,null,null,null,null,null,null,null,null,null,null,null,null,"Marque con una “X”, una o más opciones"]
[null,null,null,null,"Liderazgo directivo",null,null,null,null,null,null,null,null,null,null,null,null,"MINEDU"]
[null,null,null,null,"Temas administrativos",null,null,null,null,null,null,null,null,null,null,null,null,"DRE/GRE"]
[null,null,null,null,"Temas estratégicos",null,null,null,null,null,null,null,null,null,null,null,null,"UGEL"]
[null,null,null,null,"Temas pedagógicos",null,null,null,null,null,null,null,null,null,null,null,null,"Organizaciones sin fines de lucro/ONG"]
[null,null,null,null,"Temas comunitarios",null,null,null,null,null,null,null,null,null,null,null,null,"Entidad privada, como auspicio"]
[null,null,null,null,"Círculo de Interaprendizaje de Directivos (CID)",null,null,null,null,null,null,null,null,null,null,null,null,"Entidad privada, como convenio"]
[null,null,null,null,"Otros","",null,null,null,null,null,null,null,null,null,null,null,"Inversión propia"]
[null,null,null,null,null,null,null,null,null,null,null,null,null,null,null,null,null,"Otro"]
[]
[null,"111. DURANTE EL AÑO 2023, EL EQUIPO DIRECTIVO DE ESTE SERVICIO/NIVEL"]
[null,null,"EDUCATIVO, ¿HA REALIZADO EL MONITOREO A LA PRÁCTICA PEDAGÓGICA",null,null,null,null,null,null,null,null,null,"114. ¿QUÉ ESTRATEGIAS FORMATIVAS VIRTUALES PRIORIZARÍA SOBRE TEMAS"]
[null,null,"DE LAS TUTORAS Y TUTORES?",null,null,null,null,null,null,null,null,null,null,"DE EDUCACIÓN INCLUSIVA O ATENCIÓN A LA DIVERSIDAD?"]
[null,null,null,null,null,null,null,null,null,null,null,null,null,"Marque con una “X”, una o más opciones"]
[]
[null,null," Sí",null,null,null," No  ",null,null,null,null,null,null,null,"Curso virtual tutorado"]
[null,null,null,null,null,null,null,null,null,null,null,null,null,null,"Curso virtual autoformativo"]
[null,null,null,null,null,null,null,null,null,null,null,null,null,null,"Grupo o círculo de interaprendizaje"]
[null,null,null,"¿Con qué frecuencia monitorea a cada docente durante el año escolar?",null,null,null,null,null,null,null,null,null,null,"Comunidades profesionales de apendizaje"]
[null,null,null,"Marque con una “X” una opción",null,null,null,null,null,null,null,null,null,null,"Asesoría personalizada"]
[null,null,null,null,"Al menos 1 vez al año",null,null,null,null,null,null,null,null,null,"Pasantia"]
[null,null,null,null,"2 veces al año",null,null,null,null,null,null,null,null,null,"Otros"]
[null,null,null,null,"3 veces al año"]
[null,null,null,null,"4 veces al año o más"]
[null,null,null,{"$f":"CONCATENATE(D145,D146)","v":""}]
[]
[null,null,null,"En caso haya señalado \"3 veces al año\" o “4 veces al año o más”, indique el motivo:"]
[null,null,null,null,"El monitoreo es una actividad obligatoria."]
[null,null,null,null,"En clases me enseñaron que es necesario el monitoreo."]
[null,null,null,null,"El monitoreo permite dialogar sobre la práctica docente"]
[null,null,null,null,"y fortalece el logro de aprendizajes"]
[]
[]
[null,"115. EN EL PRESENTE AÑO EL DIRECTOR(A), COORDINADOR(A) O RESPONSABLE DE",null,null,null,null,null,null,null,null,null,null,"118. EL SERVICIO/NIVEL EDUCATIVO, ¿REALIZA ACTIVIDADES CON FAMILIAS Y"]
[null,null,"ESTE SERVICIO/NIVEL EDUCATIVO, ¿BRINDA SOPORTE Y APOYO A LAS TUTORAS",null,null,null,null,null,null,null,null,null,null,"COMUNIDAD QUE AYUDEN A LA PROMOCIÓN DE UN AMBIENTE INSTITUCIONAL"]
[null,null,"Y LOS TUTORES EN TORNO A SU DESEMPEÑO EN EL MARCO DEL ACOMPAÑAMIENTO",null,null,null,null,null,null,null,null,null,null,"FAVORABLE PARA LA ATENCIÓN DE LA DIVERSIDAD?"]
[null,null,"PEDAGÓGICO Y ESPACIOS DE TRABAJO COLEGIADO O TRANSDISCIPLINARIO?"]
[null,null,null,null,null,null,null,null,null,null,null,null,null,"Sí  ",null,null,null,"No  ",null,null,"Pase a la pregunta 120."]
[null,null,"Sí  ",null,null,null,"No  ",null,null,"Pase a la pregunta 117"]
[null,null,null,null,null,null,null,null,null,null,null,null,null,null,null,"¿Qué actividades realiza?"]
[null,"116 ¿QUÉ TEMAS HAN SIDO ABORDADOS MAYORITARIAMENTE POR EL DIRECTOR(A),"]
[null,null,"COORDINADOR(A) O RESPONSABLE DURANTE LAS SESIONES DE SOPORTE Y",null,null,null,null,null,null,null,null,null,null,null,null,"Acompañamiento en el proceso de aprendizaje"]
[null,null,"APOYO A LAS TUTORAS Y LOS TUTORES EN EL MARCO DEL ACOMPAÑAMIENTO",null,null,null,null,null,null,null,null,null,null,null,null,"Actividades que fortalecen las competencias parentales"]
[null,null,"PEDAGÓGICO Y ESPACIOS DE TRABAJO COLEGIADO O TRANSDISCIPLINARIO?",null,null,null,null,null,null,null,null,null,null,null,null,"Vínculos afectivos con hijos e hijas"]
[null,null,"Marque con una “X”, una o más opciones",null,null,null,null,null,null,null,null,null,null,null,null,"Jornadas con madres y padres"]
[null,null,null,null,null,null,null,null,null,null,null,null,null,null,null,"Otros"]
[null,null,null,"Planificación curricular"]
[null,null,null,"Conducción de los aprendizajes"]
[null,null,null,"Como brindar acompañamiento socioafectivo y cognitivo",null,null,null,null,null,null,null,null,"119. DE LAS ACTIVIDADES QUE REALIZA CON FAMILIAS Y COMUNIDAD,"]
[null,null,null,"Uso de los recursos y materiales educativos para atender la diversidad",null,null,null,null,null,null,null,null,null,"¿POR LO MENOS UNA DE ELLAS TIENE COMO EJE PRINCIPAL LA"]
[null,null,null,"Evaluación e Informe Psicopedagógico",null,null,null,null,null,null,null,null,null,"EDUCACIÓN SEXUAL INTEGRAL (ESI)?"]
[null,null,null,"Elaboración del Plan Educativo Personalizado"]
[null,null,null,"Informe de progreso",null,null,null,null,null,null,null,null,null,"Sí  ",null,null,null,"No  "]
[null,null,null,"Elaboración de sesiones de aprendizaje"]
[null,null,null,"Otros temas"]
[null,null,null,null,null,null,null,null,null,null,null,null,"120. ¿HA VISITADO EL PORTAL WEB PARA DIRECTIVOS EN LOS ÚLTIMOS TRES MESES?"]
[null,"117. EL SERVICIO/NIVEL EDUCATIVO, ¿DESARROLLA LAS SIGUIENTES ESTRATEGIAS",null,null,null,null,null,null,null,null,null,null,null,"https://directvos.minedu.gob.pe/"]
[null,null,"DE ACOMPAÑAMIENTO?"]
[null,null,"Marque con una “X”, una o más opciones",null,null,null,null,null,null,null,null,null,null,"Sí  ",null,null,null,"No  "]
[]
[null,null,null,"Visita en aula",null,null,null,null,null,null,null,null,null,null,null,"¿La información encontrada en el portal web para direc vos "]
[null,null,null,"Grupos de Interaprendizaje (GIA)",null,null,null,null,null,null,null,null,null,null,null,"le resultó de utilidad?"]
[null,null,null,"Talleres"]
[null,null,null,"Otros",null,null,null,null,null,null,null,null,null,null,null,"Sí  ",null,null,"No  "]

{"sheet":"C200","index":2,"n_rows":84,"n_cols":16,"rows_kept":84,"cut":false,"hidden":false,"merged":[[2,5,2,11],[1,5,1,11],[71,12,71,13],[70,2,72,5],[27,8,27,13],[25,3,25,13],[42,3,42,13],[61,6,61,9],[10,2,12,5],[61,2,62,4],[44,2,46,5],[44,6,45,7],[45,12,45,13],[44,8,44,13],[11,12,11,13],[45,8,45,9],[45,10,45,11],[61,5,62,5],[11,14,11,15],[11,10,11,11],[10,6,11,7],[11,8,11,9],[27,2,29,5],[28,8,28,9],[27,6,28,7],[28,12,28,13],[28,10,28,11],[63,2,63,4],[71,10,71,11],[70,6,71,7],[71,14,71,15],[71,8,71,9],[68,3,68,15]]}
[]
[null,null,null,null,null,"CENSO EDUCATIVO 2024"]
[null,null,null,null,null,"MATRÍCULA, DOCENTES Y RECURSOS"]
[]
[]
[]
[null,null,"200. MATRÍCULA Y SECCIONES"]
[]
[null,null,201,"MATRÍCULA EN PRITE POR EDAD ATENDIDA Y SEXO, SEGÚN TIPO DE DISCAPACIDAD U OTRA CONDICIÓN"]
[]
[null,null,"TIPO DE DISCAPACIDAD U OTRA CONDICIÓN",null,null,null,"TOTAL",null,"EDAD ATENDIDA Y SEXO"]
[null,null,null,null,null,null,null,null,0,null,1,null,2,null,"3 y más"]
[null,null,null,null,null,null,"H","M","H","M","H","M","H","M","H","M"]
["00",null,"TOTAL",null,null,null,{"$f":"SUM(G15:G23)","v":0},0,0,0,0,0,0,0,0,0]
["01",null,"DISCAPACIDAD INTELECTUAL",null,null,null,{"$f":"I15+K15+M15+O15+Q15+S15","v":0},{"$f":"J15+L15+N15+P15+R15+T15","v":0}]
["02",null,"DISCAPACIDAD AUDITIVA",null,null,null,{"$f":"I16+K16+M16+O16+Q16+S16","v":0},{"$f":"J16+L16+N16+P16+R16+T16","v":0}]
["03",null,"DISCAPACIDAD VISUAL",null,null,null,{"$f":"I17+K17+M17+O17+Q17+S17","v":0},{"$f":"J17+L17+N17+P17+R17+T17","v":0}]
["04",null,"DISCAPACIDAD FÍSICA O MOTORA",null,null,null,0,0]
["05",null,"TRASTORNO DEL ESPECTRO AUTISTA (TEA)",null,null,null,0,0]
["06",null,"SORDOCEGUERA",null,null,null,0,0]
["07",null,"MULTIDISCAPACIDAD",null,null,null,0,0]
["08",null,"NIÑAS Y NIÑOS DE ALTO RIESGO",null,null,null,0,0]
["09",null,"OTRA (OTRA DISCAPACIDAD U OTRA CONDICIÓN)",null,null,null,{"$f":"I23+K23+M23+O23+Q23+S23","v":0},{"$f":"J23+L23+N23+P23+R23+T23","v":0}]
["10"]
[]
[null,null,202,"MATRÍCULA EN PRITE POR TIPO DE DOCUMENTO DE EVIDENCIA Y SEXO, SEGÚN TIPO DE DISCAPACIDADIDAD U OTRA CONDICIÓN"]
[]
[null,null,"TIPO DE DISCAPACIDAD U OTRA CONDICIÓN",null,null,null,"TOTAL",null,"DOCUMENTO DE EVIDENCIA"]
[null,null,null,null,null,null,null,null,"Certificado de Discapacidad",null,"Informe o Certificado Médico de profesional o institución",null,"Declaración Jurada\nPadre/Madre/ Tutor"]
[null,null,null,null,null,null,"H","M","H","M","H","M","H","M"]
["00",null,"TOTAL",null,null,null,{"$f":"SUM(G32:G40)","v":0},0,0,0,0,0,0,0]
["01",null,"DISCAPACIDAD INTELECTUAL",null,null,null,{"$f":"I32+K32+M32","v":0},{"$f":"J32+L32+N32","v":0}]
["02",null,"DISCAPACIDAD AUDITIVA",null,null,null,0,0]
["03",null,"DISCAPACIDAD VISUAL",null,null,null,0,0]
["04",null,"DISCAPACIDAD FÍSICA O MOTORA",null,null,null,0,0]
["05",null,"TRASTORNO DEL ESPECTRO AUTISTA (TEA)",null,null,null,0,0]
["06",null,"SORDOCEGUERA",null,null,null,0,0]
["07",null,"MULTIDISCAPACIDAD",null,null,null,0,0]
["08",null,"NIÑAS Y NIÑOS DE ALTO RIESGO",null,null,null,0,0]
["09",null,"OTRA (OTRA DISCAPACIDAD U OTRA CONDICIÓN)",null,null,null,0,0]
["10",null,"Nota: Los totales de esta tabla deben ser iguales a los de la tabla 201."]
[]
[null,null,203,"MATRÍCULA EN PRITE QUE SE ENCUENTREN EN SITUACIÓN DE HOSPITALIZACIÓN AL MOMENTO DEL REPORTE DEL CENSO EDUCATIVO 2023, SEGÚN TIPO DE DISCAPACIDAD U OTRA CONDICIÓN"]
[]
[null,null,"TIPO DE DISCAPACIDAD U OTRA CONDICIÓN",null,null,null,"TOTAL",null,"Estudiantes en situación de hospitalización"]
[null,null,null,null,null,null,null,null,"Menos de 15 días",null,"De 15 a 30 días",null,"Más de 30 días"]
[null,null,null,null,null,null,"H","M","H","M","H","M","H","M"]
["00",null,"TOTAL",null,null,null,{"$f":"SUM(G49:G58)","v":0},0,0,0,0,0,0,0]
["01",null,"DISCAPACIDAD INTELECTUAL",null,null,null,{"$f":"I49+K49+M49","v":0},{"$f":"J49+L49+N49","v":0}]
["02",null,"DISCAPACIDAD AUDITIVA",null,null,null,{"$f":"I50+K50+M50","v":0},{"$f":"J50+L50+N50","v":0}]
["03",null,"DISCAPACIDAD VISUAL",null,null,null,{"$f":"I51+K51+M51","v":0},0]
["04",null,"DISCAPACIDAD FÍSICA O MOTORA",null,null,null,0,0]
["05",null,"TRASTORNO DEL ESPECTRO AUTISTA (TEA)",null,null,null,0,0]
["06",null,"SORDOCEGUERA",null,null,null,0,0]
["07",null,"MULTIDISCAPACIDAD",null,null,null,0,0]
["08",null,"NIÑAS Y NIÑOS DE ALTO RIESGO",null,null,null,0,0]
["09",null,"OTRA (OTRA DISCAPACIDAD U OTRA CONDICIÓN)",null,null,null,0,0]
[]
[]
[null,null,204,"NÚMERO TOTAL DE SECCIONES EN PRITE, POR AÑO ATENDIDO, SEGÚN TURNO"]
[]
[null,null,"TURNO",null,null,"TOTAL\nSECCIONES","AÑO ATENDIDO"]
[null,null,null,null,null,null,0,1,2,"3 y +"]
["00",null,"TOTAL",null,null,{"$f":"SUM(G64:J64)","v":0},{"$f":"SUM(G65:G66)","v":0},{"$f":"SUM(H65:H66)","v":0},{"$f":"SUM(I65:I66)","v":0},{"$f":"SUM(J65:J66)","v":0}]
["01",null,"Mañana",null,null,{"$f":"SUM(G65:J65)","v":0}]
["02",null,"Tarde",null,null,{"$f":"SUM(G66:J66)","v":0}]
[null,null,null,null,null,null,{"$f":"I14+J14","v":0},{"$f":"K14+L14","v":0},{"$f":"M14+N14","v":0},{"$f":"SUM(O14:P14)","v":0}]
[]
[null,null,205,"MATRÍCULA DE NIÑAS Y NIÑOS EN OTROS PROGRAMAS (CICLO I EBR) Y SON ATENDIDOS EN EL PRITE POR EDAD ATENDIDA Y SEXO, SEGÚN TIPO DE DISCAPACIDAD U OTRA CONDICIÓN"]
[]
[null,null,"TIPO DE DISCAPACIDAD U OTRA CONDICIÓN",null,null,null,"TOTAL",null,"EDAD ATENDIDA Y SEXO"]
[null,null,null,null,null,null,null,null,0,null,1,null,2,null,3]
[null,null,null,null,null,null,"H","M","H","M","H","M","H","M","H","M"]
["00",null,"TOTAL",null,null,null,{"$f":"SUM(G75:G83)","v":0},0,0,0,0,0,0,0,0,0]
["01",null,"DISCAPACIDAD INTELECTUAL",null,null,null,{"$f":"I75+K75+M75+O75+Q75+S75","v":0},{"$f":"J75+L75+N75+P75+R75+T75","v":0}]
["02",null,"DISCAPACIDAD AUDITIVA",null,null,null,{"$f":"I76+K76+M76+O76+Q76+S76","v":0},{"$f":"J76+L76+N76+P76+R76+T76","v":0}]
["03",null,"DISCAPACIDAD VISUAL",null,null,null,0,0]
["04",null,"DISCAPACIDAD FÍSICA O MOTORA",null,null,null,0,0]
["05",null,"TRASTORNO DEL ESPECTRO AUTISTA (TEA)",null,null,null,0,0]
["06",null,"SORDOCEGUERA",null,null,null,0,0]
["07",null,"MULTIDISCAPACIDAD",null,null,null,0,0]
["08",null,"NIÑAS Y NIÑOS DE ALTO RIESGO",null,null,null,0,0]
["09",null,"OTRA (OTRA DISCAPACIDAD U OTRA CONDICIÓN)",null,null,null,0,0]
[null,null,"NOTA: De acuerdo a la RVM 094-2020-MINEDU, se menciona que los PRITE pueden atender a estudiantes que están matriculados en el Ciclo I de EBR"]

{"sheet":"C300","index":3,"n_rows":198,"n_cols":51,"rows_kept":198,"cut":false,"hidden":false,"merged":[[6,10,6,23],[15,23,17,23],[15,10,17,10],[15,18,17,18],[15,22,17,22],[15,19,17,19],[14,14,14,15],[15,14,15,15],[15,20,17,20],[15,11,17,11],[15,12,17,12],[15,13,17,13],[7,10,7,23],[15,21,17,21],[14,43,14,45],[15,39,15,42],[15,43,15,45],[16,43,17,43],[16,44,16,45],[16,39,17,39],[14,39,14,42],[16,41,17,41],[16,42,17,42],[16,40,17,40],[15,29,17,29],[15,34,17,34],[15,26,17,26],[15,28,17,28],[15,25,17,25],[15,30,17,30],[12,26,12,27],[15,16,17,16],[15,17,17,17],[15,27,17,27],[15,24,17,24],[15,47,17,47],[15,31,17,31],[15,37,17,37],[15,38,17,38],[15,32,17,32],[15,36,17,36],[15,35,17,35],[15,33,17,33],[15,46,16,46]]}
[]
[null,null,null,null,null,null,null,null,null,null,null,null,"CENSO EDUCATIVO 2024"]
[null,null,null,null,null,null,null,null,null,null,null,null,"MATRÍCULA, DOCENTES Y RECURSOS"]
[]
["PERSONAL",{"$f":"Q10+U10+W10","v":0}]
[]
["DOCENTES",{"$f":"COUNTIF(Q19:Q118,\"01: Docente\")","v":0},null,null,null,null,null,null,null,null,"300. PERSONAL DOCENTE, NO DOCENTE Y ADMINISTRATIVO"]
["NO DOCENTES",{"$f":"COUNTIF(Q19:Q118,\"04: No Docente\")","v":0},null,null,null,null,null,null,null,null,"En esta tabla, REGISTRE a todo el personal docente, no docente y personal administrativo que se encuentre laborando en el servicio/nivel educa vo durante el periodo de reporte del censo educativo.\n(EXCLUYA al personal que se encuentre haciendo uso de licencia y a los que han sido destacados a otra IE/DRE/UGEL)"]
["ADMINISTRATIVOS",{"$f":"COUNTIF(Q19:Q118,\"02: Administrativo\")","v":0}]
[null,null,null,null,null,null,null,null,null,null,null,null,"TOTAL PROFESIONALES :  ",{"$f":"Q10+U10","v":0},null,"DOCENTES :  ",null,null,null,"NO DOCENTES :  ",null,"ADMINISTRATIVOS :  "]
["DOCENTES CON SECCIÓN",{"$f":"COUNTIF(AM19:AM118,\"SI\")","v":0}]
[null,{"$f":"B7+B8+B9","v":0},null,null,null,null,null,null,null,null,"El “Total Profesionales”, considera a todo el personal que cumplen funciones en el Servicio educativo: Directoras(res), Docentes, coordinadoras(res), responsables del PRITE con o sin aula a cargo y administrativos."]
["LENGUA ORIGINARIA",null,null,null,null,null,null,null,null,null,"Documentos fuente: Legajo de personal y CAP de la Institución Educativa."]
[]
[null,null,null,null,null,null,null,null,null,null,null,301.10000000000002,301.2,301.3,302,null,303,304,305,306,307,308,309,310,311,312,313,314,315,316,317,318,319,320,321,322,323,324,325,326,null,null,null,327,null,null,328,329]
["GESTIÓN",{"$f":"IF(OR(UPPER('C100'!I35)=\"X\",UPPER('C100'!N35)=\"X\"),1,IF(UPPER('C100'!S35)=\"X\",3,\"\"))","v":""},null,null,null,null,null,null,null,null,"Nº","Apellido Paterno","Apellido Materno","Nombres","Documento de Identidad",null,"Tipo de\nPersonal","Edad","Sexo","Lengua\nmaterna","¿Domina una\nlengua\noriginaria?\nSí - No","Lengua originaria\nque domina","Fuente de\nfinanciamiento","Condición Laboral","Modalidad de Contrato","Máximo nivel\neducativo alcanzado","Especialidad Pedagógica\nque ha estudiado","¿En qué tipo de\ninstitución obtuvo su\nformación pedagógica?","Segunda especialidad","Estudios de Postgrado en Pedagogía","Tiempo de Servicio\n(en años)","Años de Experiencia Laboral","Años de\nexperiencia\nlaboral en\neste servicio/nivel\neducativo","Escala\nMagisterial","Función o cargo","Situación en cargo\ndirectivo","Licencia \no\nDestaque","Jornada Laboral según\nNombramiento\no Contrato","¿Tiene secciones a cargo?","Conocimiento de Ingles",null,null,null,"Certificación de Inglés",null,null,"¿Presenta alguna discapacidad?","Solo si respondió Sí en la pregunta\n328 ¿Cúal es el tipo de discapacidad?"]
[null,null,"Exp1","Exp2","Exp3","Exp4","Exp5","Exp6",null,null,null,null,null,null,302.10000000000002,302.2,null,null,null,null,null,null,null,null,null,null,null,null,null,null,null,null,null,null,null,null,null,null,null,"No Sabe","Habla","Lee","Escribe","No Tiene","Si Tiene"]
["302.1 Tipo de documento de Identidad","314. Tipo de inst. donde estudio","Corr","Escala","Gest","Fun cion","Duplex","Fmt",null,null,null,null,null,null,"Tipo","Número",null,null,null,null,null,null,null,null,null,null,null,null,null,null,null,null,null,null,null,null,null,null,null,null,null,null,null,null,"Nacional","Interna cional","Sí / No"]
["01: DNI.","01: IESP (Público)",1,{"$f":"IF(AND(LEFT(Q19,2)=\"01\",LEFT(W19,2)=\"01\",LEFT(X19,2)=\"01\",E19=1),1,0)","v":0},{"$f":"$B$16","v":""},{"$f":"IF(Q19<>\"\",VALUE(LEFT(Q19,2)),0)","v":0},{"$f":"IF(P19<>\"\",COUNTIF($P$19:$P$319,P19),0)","v":0},{"$f":"IF(K19<>\"\",1,0)","v":0},null,null,{"$f":"IF(C19<=$B$5,C19,\"\")","v":""},"","","","","","","","","","","","","","","","","","","","","","","","","","","","","","","","","","","","",""]
["02: Carnet Ext.","02: IESP (Privado)",2,{"$f":"IF(AND(LEFT(Q20,2)=\"01\",LEFT(W20,2)=\"01\",LEFT(X20,2)=\"01\",E20=1),1,0)","v":0},{"$f":"$B$16","v":""},{"$f":"IF(Q20<>\"\",VALUE(LEFT(Q20,2)),0)","v":0},{"$f":"IF(P20<>\"\",COUNTIF($P$19:$P$319,P20),0)","v":0},{"$f":"IF(K20<>\"\",1,0)","v":0},null,null,{"$f":"IF(C20<=$B$5,C20,\"\")","v":""},"","","","","","","","","","","","","","","","","","","","","","","","","","","","","","","","","","","","",""]
["03: Pasaporte","03: Universidad Privada",3,0,"",0,0,{"$f":"IF(K21<>\"\",1,0)","v":0},null,null,{"$f":"IF(C21<=$B$5,C21,\"\")","v":""},"","","","","","","","","","","","","","","","","","","","","","","","","","","","","","","","","","","","",""]
[null,"04: Universidad Pública",4,0,"",0,0,0,null,null,"","","","","","","","","","","","","","","","","","","","","","","","","","","","","","","","","","","","","",""]
["303. Tipo de Personal",null,5,0,"",0,0,0,null,null,"","","","","","","","","","","","","","","","","","","","","","","","","","","","","","","","","","","","","",""]
["01: Docente","315. Segunda Especialidad",6,0,"",0,0,0,null,null,"","","","","","","","","","","","","","","","","","","","","","","","","","","","","","","","","","","","","","","","",""]
["02: Administrativo","Utilice las especialidades de la tabla de códigos 313.",7,0,"",0,0,0,null,null,"","","","","","","","","","","","","","","","","","","","","","","","","","","","","","","","","","","","","","","","",""]
["04: No Docente",null,8,0,"",0,0,0,null,null,"","","","","","","","","","","","","","","","","","","","","","","","","","","","","","","","","","","","","","","","",""]
["03: Aux. de Educación","316. Estudios de Postgrado en Pedagogía",9,0,"",0,0,0,null,null,"","","","","","","","","","","","","","","","","","","","","","","","","","","","","","","","","","","","","","","","",""]
[null,"Estudios de Maestría y doctorado",10,0,"",0,0,0,null,null,"","","","","","","","","","","","","","","","","","","","","","","","","","","","","","","","","","","","","","","","",""]
["305. Sexo","01: Maestria concluida con grado",11,0,"",0,0,0,null,null,"","","","","","","","","","","","","","","","","","","","","","","","","","","","","","","","","","","","","","","","",""]
["Hombre","02: Maestria concluida sin grado",12,0,"",0,0,0,null,null,"","","","","","","","","","","","","","","","","","","","","","","","","","","","","","","","","","","","","","","","",""]
["Mujer","03: Maestria en proceso",13,0,"",0,0,0,null,null,"","","","","","","","","","","","","","","","","","","","","","","","","","","","","","","","","","","","","","","","",""]
[null,"04: Doctorado concluido con grado",14,0,"",0,0,0,null,null,"","","","","","","","","","","","","","","","","","","","","","","","","","","","","","","","","","","","","","","","",""]
["306. Lengua Materna","05: Doctorado concluido sin grado",15,0,"",0,0,0,null,null,"","","","","","","","","","","","","","","","","","","","","","","","","","","","","","","","","","","","","","","","",""]
["0100: Castellano","06: Doctorado en proceso",16,0,"",0,0,0,null,null,"","","","","","","","","","","","","","","","","","","","","","","","","","","","","","","","","","","","","","","","",""]
["0200: Achuar","07: Sin Postgrado",17,0,"",0,0,0,null,null,"","","","","","","","","","","","","","","","","","","","","","","","","","","","","","","","","","","","","","","","",""]
["0300: Aimara",null,18,0,"",0,0,0,null,null,"","","","","","","","","","","","","","","","","","","","","","","","","","","","","","","","","","","","","","","","",""]
["0400: Amahuaca",null,19,0,"",0,0,0,null,null,"","","","","","","","","","","","","","","","","","","","","","","","","","","","","","","","","","","","","","","","",""]
["0500: Arabela","317. Tiempo de Servicio",20,0,"",0,0,0,null,null,"","","","","","","","","","","","","","","","","","","","","","","","","","","","","","","","","","","","","","","","",""]
["0600: Asháninka","Solo personal Nombrado.",21,0,"",0,0,0,null,null,"","","","","","","","","","","","","","","","","","","","","","","","","","","","","","","","","","","","","","","","",""]
["0610: Asheninka","Tiempo contado expresado en años desde su fecha de Nombramiento",22,0,"",0,0,0,null,null,"","","","","","","","","","","","","","","","","","","","","","","","","","","","","","","","","","","","","","","","",""]
["0700: Awajún",null,23,0,"",0,0,0,null,null,"","","","","","","","","","","","","","","","","","","","","","","","","","","","","","","","","","","","","","","","",""]
["0800: Bora","318. Años de Experiencia Laboral",24,0,"",0,0,0,null,null,"","","","","","","","","","","","","","","","","","","","","","","","","","","","","","","","","","","","","","","","",""]
["0900: Kapanawa","Registre el total de años que tiene como experiencia",25,0,"",0,0,0,null,null,"","","","","","","","","","","","","","","","","","","","","","","","","","","","","","","","","","","","","","","","",""]
["1000: Cashinahua","en el Tipo de Personal que se está registrando (Tabla 301.)",26,0,"",0,0,0,null,null,"","","","","","","","","","","","","","","","","","","","","","","","","","","","","","","","","","","","","","","","",""]
["1100: Kawki",null,27,0,"",0,0,0,null,null,"","","","","","","","","","","","","","","","","","","","","","","","","","","","","","","","","","","","","","","","",""]
["1200: Chamikuro","319. Años de experiencia laboral en este servicio/ nivel educativo",28,0,"",0,0,0,null,null,"","","","","","","","","","","","","","","","","","","","","","","","","","","","","","","","","","","","","","","","",""]
["1300: Ese eja","Anote el N° de años de experiencia prestando servicios",29,0,"",0,0,0,null,null,"","","","","","","","","","","","","","","","","","","","","","","","","","","","","","","","","","","","","","","","",""]
["1400: Harakbut","en este servicio/nivel educativo por el tipo de personal",30,0,"",0,0,0,null,null,"","","","","","","","","","","","","","","","","","","","","","","","","","","","","","","","","","","","","","","","",""]
["1500: Iñapari","que se está registrando (Tabla 301.)",31,0,"",0,0,0,null,null,"","","","","","","","","","","","","","","","","","","","","","","","","","","","","","","","","","","","","","","","",""]
["1600: Ikuitu",null,32,0,"",0,0,0,null,null,"","","","","","","","","","","","","","","","","","","","","","","","","","","","","","","","","","","","","","","","",""]
["1700: Iskonawa","320. Escala Magisterial",33,0,"",0,0,0,null,null,"","","","","","","","","","","","","","","","","","","","","","","","","","","","","","","","","","","","","","","","",""]
["1800: Jaqaru","Complete los datos de Escala Magisterial, según corresponda",34,0,"",0,0,0,null,null,"","","","","","","","","","","","","","","","","","","","","","","","","","","","","","","","","","","","","","","","",""]
["1900: Kakataibo","01: Primera",35,0,"",0,0,0,null,null,"","","","","","","","","","","","","","","","","","","","","","","","","","","","","","","","","","","","","","","","",""]
["2000: Kakinte (caquinte)","02: Segunda",36,0,"",0,0,0,null,null,"","","","","","","","","","","","","","","","","","","","","","","","","","","","","","","","","","","","","","","","",""]
["2110: Kandozi (Chapra)","03: Tercera",37,0,"",0,0,0,null,null,"","","","","","","","","","","","","","","","","","","","","","","","","","","","","","","","","","","","","","","","",""]
["2120: Kandozi (Kandozi)","04: Cuarta",38,0,"",0,0,0,null,null,"","","","","","","","","","","","","","","","","","","","","","","","","","","","","","","","","","","","","","","","",""]
["2200: Kukama-kukamiria","05: Quinta",39,0,"",0,0,0,null,null,"","","","","","","","","","","","","","","","","","","","","","","","","","","","","","","","","","","","","","","","",""]
["2300: Madija (culina)","06: Sexta",40,0,"",0,0,0,null,null,"","","","","","","","","","","","","","","","","","","","","","","","","","","","","","","","","","","","","","","","",""]
["2400: Maijiki","07: Séptima",41,0,"",0,0,0,null,null,"","","","","","","","","","","","","","","","","","","","","","","","","","","","","","","","","","","","","","","","",""]
["2500: Matsés","08: Octava",42,0,"",0,0,0,null,null,"","","","","","","","","","","","","","","","","","","","","","","","","","","","","","","","","","","","","","","","",""]
["2600: Matsigenka","09: Sin Escala",43,0,"",0,0,0,null,null,"","","","","","","","","","","","","","","","","","","","","","","","","","","","","","","","","","","","","","","","",""]
["2700: Munichi",null,44,0,"",0,0,0,null,null,"","","","","","","","","","","","","","","","","","","","","","","","","","","","","","","","","","","","","","","","",""]
["2800: Murui-muinani","321. Función o Cargo",45,0,"",0,0,0,null,null,"","","","","","","","","","","","","","","","","","","","","","","","","","","","","","","","","","","","","","","","",""]
["2900: Matsigenka-montetokunirira","(Desempeñado a la fecha de reporte)",46,0,"",0,0,0,null,null,"","","","","","","","","","","","","","","","","","","","","","","","","","","","","","","","","","","","","","","","",""]
["3000: Nomatsigenga","Docentes",47,0,"",0,0,0,null,null,"","","","","","","","","","","","","","","","","","","","","","","","","","","","","","","","","","","","","","","","",""]
["3100: Ocaina","01: (102)-Director",48,0,"",0,0,0,null,null,"","","","","","","","","","","","","","","","","","","","","","","","","","","","","","","","","","","","","","","","",""]
["3200: Omagua","02: (142)-Coordinador del PRITE",49,0,"",0,0,0,null,null,"","","","","","","","","","","","","","","","","","","","","","","","","","","","","","","","","","","","","","","","",""]
["3310: Quechua amazónico (Kichwa)","03: (143)-Tutor(a) del PRITE",50,0,"",0,0,0,null,null,"","","","","","","","","","","","","","","","","","","","","","","","","","","","","","","","","","","","","","","","",""]
["3321: Quechua central (Ancash)",null,51,0,"",0,0,0,null,null,"","","","","","","","","","","","","","","","","","","","","","","","","","","","","","","","","","","","","","","","",""]
["3322: Quechua central (Huánuco)",null,52,0,"",0,0,0,null,null,"","","","","","","","","","","","","","","","","","","","","","","","","","","","","","","","","","","","","","","","",""]
["3323: Quechua central (Wanka)",null,53,0,"",0,0,0,null,null,"","","","","","","","","","","","","","","","","","","","","","","","","","","","","","","","","","","","","","","","",""]
["3324: Quechua central (Pasco)","No Docentes",54,0,"",0,0,0,null,null,"","","","","","","","","","","","","","","","","","","","","","","","","","","","","","","","","","","","","","","","",""]
["3331: Quechua norteño (Cajamarca)","04: (532)-Terapista Físico",55,0,"",0,0,0,null,null,"","","","","","","","","","","","","","","","","","","","","","","","","","","","","","","","","","","","","","","","",""]
["3332: Quechua norteño (Inkawasi Kañaris)","05: (540)-Terapista OcupacionaL",56,0,"",0,0,0,null,null,"","","","","","","","","","","","","","","","","","","","","","","","","","","","","","","","","","","","","","","","",""]
["3341: Quechua sureño (Chanka)","06: (533)-Terapista del Lenguaje",57,0,"",0,0,0,null,null,"","","","","","","","","","","","","","","","","","","","","","","","","","","","","","","","","","","","","","","","",""]
["3342: Quechua sureño (Collao)","07: (503)-Personal de Salud",58,0,"",0,0,0,null,null,"","","","","","","","","","","","","","","","","","","","","","","","","","","","","","","","","","","","","","","","",""]
["3400: Resígaro","08: (501)-Psicólogo",59,0,"",0,0,0,null,null,"","","","","","","","","","","","","","","","","","","","","","","","","","","","","","","","","","","","","","","","",""]
["3500: Secoya","09: (502)-Trabajo Social / Servicio Social",60,0,"",0,0,0,null,null,"","","","","","","","","","","","","","","","","","","","","","","","","","","","","","","","","","","","","","","","",""]
["3600: Sharanahua",null,61,0,"",0,0,0,null,null,"","","","","","","","","","","","","","","","","","","","","","","","","","","","","","","","","","","","","","","","",""]
["3700: Shawi",null,62,0,"",0,0,0,null,null,"","","","","","","","","","","","","","","","","","","","","","","","","","","","","","","","","","","","","","","","",""]
["3800: Shipibo-Konibo",null,63,0,"",0,0,0,null,null,"","","","","","","","","","","","","","","","","","","","","","","","","","","","","","","","","","","","","","","","",""]
["3900: Shiwilu",null,64,0,"",0,0,0,null,null,"","","","","","","","","","","","","","","","","","","","","","","","","","","","","","","","","","","","","","","","",""]
["4000: Taushiro",null,65,0,"",0,0,0,null,null,"","","","","","","","","","","","","","","","","","","","","","","","","","","","","","","","","","","","","","","","",""]
["4100: Ticuna",null,66,{"$f":"IF(AND(LEFT(Q84,2)=\"01\",LEFT(W84,2)=\"01\",LEFT(X84,2)=\"01\",E84=1),1,0)","v":0},{"$f":"$B$16","v":""},{"$f":"IF(Q84<>\"\",VALUE(LEFT(Q84,2)),0)","v":0},{"$f":"IF(P84<>\"\",COUNTIF($P$19:$P$319,P84),0)","v":0},0,null,null,"","","","","","","","","","","","","","","","","","","","","","","","","","","","","","","","","","","","","","","","",""]
["4200: Urarina",null,67,0,"",0,0,{"$f":"IF(K85<>\"\",1,0)","v":0},null,null,{"$f":"IF(C85<=$B$5,C85,\"\")","v":""},"","","","","","","","","","","","","","","","","","","","","","","","","","","","","","","","","","","","","","","",""]
["4300: Wampis","Administrativos",68,0,"",0,0,0,null,null,"","","","","","","","","","","","","","","","","","","","","","","","","","","","","","","","","","","","","","","","",""]
["4400: Yagua","10: (504)-Administrador o Contador",69,0,"",0,0,0,null,null,"","","","","","","","","","","","","","","","","","","","","","","","","","","","","","","","","","","","","","","","",""]
["4500: Yaminahua","11: (505)-Otro personal profesional",70,0,"",0,0,0,null,null,"","","","","","","","","","","","","","","","","","","","","","","","","","","","","","","","","","","","","","","","",""]
["4600: Yanesha","12: (506)-Auxiliar de Biblioteca",71,0,"",0,0,0,null,null,"","","","","","","","","","","","","","","","","","","","","","","","","","","","","","","","","","","","","","","","",""]
["4700: Yine","13: (507)-Auxiliar de Laboratorios",72,0,"",0,0,0,null,null,"","","","","","","","","","","","","","","","","","","","","","","","","","","","","","","","","","","","","","","","",""]
["4800: Nahua","14: (508)-Secretaria u oficinista",73,0,"",0,0,0,null,null,"","","","","","","","","","","","","","","","","","","","","","","","","","","","","","","","","","","","","","","","",""]
["5100: Alemán","15: (511)-Asistente Administrativo",74,0,"",0,0,0,null,null,"","","","","","","","","","","","","","","","","","","","","","","","","","","","","","","","","","","","","","","","",""]
["5200: Inglés","16: (512)-Personal de Servicio - Mantenimiento",75,0,"",0,0,0,null,null,"","","","","","","","","","","","","","","","","","","","","","","","","","","","","","","","","","","","","","","","",""]
["5300: Italiano","17: (513)-Personal de Servicio - Cocina",76,0,"",0,0,0,null,null,"","","","","","","","","","","","","","","","","","","","","","","","","","","","","","","","","","","","","","","","",""]
["5400: Japonés","18: (514)-Personal de Servicio - Limpieza",77,0,"",0,0,0,null,null,"","","","","","","","","","","","","","","","","","","","","","","","","","","","","","","","","","","","","","","","",""]
["5500: Portugués","19: (515)-Personal de Servicio - Vigilante",78,0,"",0,0,0,null,null,"","","","","","","","","","","","","","","","","","","","","","","","","","","","","","","","","","","","","","","","",""]
["5600: Ruso","20: (516)-Personal de Servicio - Otro",79,0,"",0,0,0,null,null,"","","","","","","","","","","","","","","","","","","","","","","","","","","","","","","","","","","","","","","","",""]
["5700: Francés","21: (518)-Otro personal No profesional",80,0,"",0,0,0,null,null,"","","","","","","","","","","","","","","","","","","","","","","","","","","","","","","","","","","","","","","","",""]
["5800: Otra lengua extranjera",null,81,0,"",0,0,0,null,null,"","","","","","","","","","","","","","","","","","","","","","","","","","","","","","","","","","","","","","","","",""]
[null,null,82,0,"",0,0,0,null,null,"","","","","","","","","","","","","","","","","","","","","","","","","","","","","","","","","","","","","","","","",""]
["308. Lengua Originaria",null,83,0,"",0,0,0,null,null,"","","","","","","","","","","","","","","","","","","","","","","","","","","","","","","","","","","","","","","","",""]
["De: 0200 a 4800",null,84,0,"",0,0,0,null,null,"","","","","","","","","","","","","","","","","","","","","","","","","","","","","","","","","","","","","","","","",""]
[null,null,85,0,"",0,0,0,null,null,"","","","","","","","","","","","","","","","","","","","","","","","","","","","","","","","","","","","","","","","",""]
["309. Fuente de Financiamiento",null,86,0,"",0,0,0,null,null,"","","","","","","","","","","","","","","","","","","","","","","","","","","","","","","","","","","","","","","","",""]
["01: Sector Educación",null,87,0,"",0,0,0,null,null,"","","","","","","","","","","","","","","","","","","","","","","","","","","","","","","","","","","","","","","","",""]
["02: Otro sector público",null,88,0,"",0,0,0,null,null,"","","","","","","","","","","","","","","","","","","","","","","","","","","","","","","","","","","","","","","","",""]
["03: Municipalidad",null,89,0,"",0,0,0,null,null,"","","","","","","","","","","","","","","","","","","","","","","","","","","","","","","","","","","","","","","","",""]
["04: Gobierno Regional",null,90,0,"",0,0,0,null,null,"","","","","","","","","","","","","","","","","","","","","","","","","","","","","","","","","","","","","","","","",""]
["05: APAFA",null,91,0,"",0,0,0,null,null,"","","","","","","","","","","","","","","","","","","","","","","","","","","","","","","","","","","","","","","","",""]
["06: Otra fuente Privada",null,92,0,"",0,0,0,null,null,"","","","","","","","","","","","","","","","","","","","","","","","","","","","","","","","","","","","","","","","",""]
[null,null,93,0,"",0,0,0,null,null,"","","","","","","","","","","","","","","","","","","","","","","","","","","","","","","","","","","","","","","","",""]
["310. Condición Laboral",null,94,0,"",0,0,0,null,null,"","","","","","","","","","","","","","","","","","","","","","","","","","","","","","","","","","","","","","","","",""]
["01: Nombrado",null,95,0,"",0,0,0,null,null,"","","","","","","","","","","","","","","","","","","","","","","","","","","","","","","","","","","","","","","","",""]
["02: Contratado",null,96,0,"",0,0,0,null,null,"","","","","","","","","","","","","","","","","","","","","","","","","","","","","","","","","","","","","","","","",""]
["03: No aplica",null,97,0,"",0,0,0,null,null,"","","","","","","","","","","","","","","","","","","","","","","","","","","","","","","","","","","","","","","","",""]
[null,null,98,0,"",0,0,0,null,null,"","","","","","","","","","","","","","","","","","","","","","","","","","","","","","","","","","","","","","","","",""]
["311. Modalidad de Contrato",null,99,0,"",0,0,0,null,null,"","","","","","","","","","","","","","","","","","","","","","","","","","","","","","","","","","","","","","","","",""]
["Contrato Público",null,100,0,"",0,0,0,null,null,"","","","","","","","","","","","","","","","","","","","","","","","","","","","","","","","","","","","","","","","",""]
["01: A plazo fijo D. Leg. 728",null,null,null,null,null,null,null,null,null,null,"","","","","","","","","","","","","","","","","","","","","","","","","","","","","","","","","","",""]
["02: Locación de Serv. / Honorarios","99: (999)-Auxiliar de Educación",null,null,null,null,null,null,null,null,"…","…","…","…","…","…","…","…","…","…","…","…","…","…","…","…","…","…","…","…","…","…","…","…","…","…","…","…","…","…","…","…","…","…","…","…","…","…"]
["03: CAS - D. Leg. 1057"]
["04: Contrato D. Leg. 276","322. Situación en el Cargo Directivo"]
["05: Contrato Ley 30328","01: Titular ratificado eval.2014"]
["06: Otra modalidad","02: Titular designado eval. 2015, 2016 y 2018"]
["Contrato Privado","03: Titular otro"]
["07: A plazo indefinido (Permanente)","04: Encargado por función, sin doc. formal"]
["08: Plazo fijo (Tiempo determinado)","05: Encargado"]
["09: A tiempo parcial (por horas)"]
["10: Locación de Serv. / Honorarios","323. Destaque o Licencia"]
["11: Otra modalidad","01: Cubriendo una licencia"]
[null,"02: De otra I.E./DRE/UGEL"]
["312. Máximo Nivel Educativo Alcanzado","03: No Aplica"]
["01: EP.Concluidos con título"]
["02: EP.Concluidos sin título"]
["03: EP.No concluidos"]
["04: NP.Concluidos con título","324. Jornada Laboral (Nombramiento / Contrato)"]
["05: NP.Concluidos sin título","40: 40 horas"]
["06: NP.No concluidos","30: 30 horas"]
["07: Secundaria","25: 25 horas"]
["08: Primaria","24: 24 horas"]
[null,"23: Menos 24 horas"]
["313. Especialidad del Título"]
["01: Educación Inicial","SI / NO"]
["02: Educación Primaria","SI"]
["03: E.I. Intercultural Bilingüe","NO"]
["04: E.P. Intercultural Bilingüe"]
["05: Educación Básica Alternativa","Parroquiales"]
["06: Educación Especial","05: APAFA"]
["07: Educación Física","06: Otra fuente Privada"]
["08: Educación Artística","01: Sector Educación"]
["09: E.S. Lengua y Literatura"]
["10: E.S. Comunicación"]
["11: E.S. Matemática y Física","336.2 ¿Cuál es el tipo de discapacidad?"]
["12: E.S. Matemática","01: Auditiva"]
["13: E.S. CCSS y Filosofía","02: Visual"]
["14: E.S. Ciencias Sociales","03: Física o Motora"]
["15: E.S. Ciencias Naturales","04: Otras"]
["16: E.S. Ciencia Tecnología y Ambiente"]
["17: E.S. Alimentación y Nutrición"]
["18: E.S. Biología y Química"]
["19: E.S. Historia y Geografía"]
["20: E.S. CC.HH. Sociales"]
["21: E.S. Idioma Inglés"]
["22: Educación Religiosa"]
["23: E.S. Educación Familiar"]
["24: E.T. Artes Industriales"]
["25: E.T. Artesanía"]
["26: E.T. Agropecuaria"]
["27: E.T. Construcción en madera"]
["28: E.T. Computación e Informática"]
["29: E.T. Carpintería/Ebanistería"]
["30: E.T. Electricidad"]
["31: E.T. Electrónica"]
["32: E.T. Ebanistería"]
["33: E.T. Industria del Vestido"]
["34: E.T. Industria del Vestido Alimentación y Alta Costura"]
["35: E.T. en Industria del Vestido y Alta Costura"]
["36: E.T.Técnica Esp. Ind. del Vestido Ind.Alimentaria y Artes"]
["37: E.T. Industria Alimentaria"]
["38: E.T. Mecánica Automotriz"]
["39: E.T. Mecánica de Producción"]
["40: E.T. Mecánica de Producción y Soldadura"]
["41: E.T. Textilería"]
["42: Otra pedagógica"]
[]
["Area curriculares"]
["01: Matemática"]
["02: Comunicación"]
["03: Ingles"]
["04: Ciencias Sociales"]
["05: Desarrollo personal ciudadania …"]
["06: Educación Física"]
["07: Ciencia y Tecnología"]
["08: Castellano como segunda lengua"]
["09: Educación para el trabajo"]
["10: Educación religiosa"]
["11: Tutoría y Orientación Educativa"]
["12: Arte y cultura"]

{"sheet":"C400","index":4,"n_rows":73,"n_cols":23,"rows_kept":73,"cut":false,"hidden":false,"merged":[[66,19,66,22],[1,6,1,20],[2,6,2,20],[15,18,15,20],[31,10,34,10],[31,11,34,11],[36,19,36,22],[31,9,34,9],[47,3,54,4],[55,3,56,4],[32,3,33,4],[35,3,38,4],[39,3,42,4],[43,3,44,4],[45,3,46,4]]}
[]
[null,null,null,null,null,null,"CENSO EDUCATIVO 2024"]
[null,null,null,null,null,null,"MATRÍCULA, DOCENTES Y RECURSOS"]
[]
[]
[]
[null,null,"330. ÁREA DE PSICOLOGÍA"]
[null,null,null,"330.1 DURANTE EL PRESENTE AÑO, ¿SE CUENTA CON ALGÚN PROFESIONAL  DE  PSICOLOGÍA INCORPORADO",null,null,null,null,null,null,null,null,null,null,"330.2. ¿A TRAVÉS DE QUÉ MECANISMO SE INCORPORÓ AL PROFESIONAL DE PSICOLOGÍA?"]
[null,null,null,"   A LA INSTITUCIÓN EDUCATIVA/PROGRAMA EDUCATIVO?",null,null,null,null,null,null,null,null,null,null,null,"Marque con una “X”, una opcion"]
[]
[null,null,null,null,null,null,null,null,null,null,null,null,null,null,null,"Contratación a través de UGEL (alguna intervención o estrategia)"]
[null,null,null,"Sí  ","",null,null,null,null,null,null,null,null,null,null,"Contratación a través de UGEL (identificación de necesidad)"]
[null,null,null,null,null,null,null,null,null,null,null,null,null,null,null,"Prácticas profesionales"]
[null,null,null,null,null,null,null,null,null,null,null,null,null,null,null,"Servicio Rural y Urbano Marginal de Salud (Serums)"]
[null,null,null,"No  ",null,"     Pase a la prgunta 401",null,null,null,null,null,null,null,null,null,"Pasantias"]
[null,null,null,null,null,null,null,null,null,null,null,null,null,null,null,"Otro"]
[]
[]
[null,null,"400. FORTALECIMIENTO DE LA GESTIÓN"]
[]
[null,null,"401. ESTE SERVICIO/NIVEL EDUCATIVO, ¿COORDINA ALGUNA ACCIÓN CON EL GOBIERNO LOCAL (DISTRITAL O PROVINCIAL)",null,null,null,null,null,null,null,null,null,null,null,null,"405. ¿ACTUALMENTE CUENTA CON ALGUNA ESTRATEGIA O ACCIONES EN EL QUE PUEDA DIALOGAR CON DIRECTORES"]
[null,null,null," O ALGUNA EMPRESA PRIVADA U ONG PARA MEJORAR LA LA PRESTACIÓN DEL SERVICIO EDUCATIVO?",null,null,null,null,null,null,null,null,null,null,null,null,"DE OTRAS IIEE PARA COMPARTIR EXPERIENCIAS Y DESARROLLAR ESTRATEGIAS PARA RESOLVER PROBLEMAS"]
[null,null,null,null,null,null,null,null,null,null,null,null,null,null,null,null,"DE LA GESTIÓN DE SU SERVICIO/NIVEL EDUCATIVO?"]
[]
["1: Siempre",null,null,"Sí","",null,"No",null,"Pase a la pregunta 403",null,null,null,null,null,null,"Sí    ",null,null,"No    ",""]
["2: A Veces"]
["3: Nunca"]
[null,null,"402. FRECUENCIA DE LA ACCION QUE AYUDA EL GOBIERNO LOCAL PARA MEJORAR LA PRESTACIÓN DEL SERVICIO"]
[null,null,null,"Solo si marco “SI” en la pregunta 401 detallar la acción",null,null,null,null,null,null,null,null,null,null,null,null,"¿Dónde lo desarrolla?"]
[null,null,null,null,null,null,null,null,null,null,null,null,null,null,null,null,"Marque con una “X”, una opción"]
[null,null,null,null,null,null,null,null,null,null,null,null,null,null,null,null,null,"La misma IIEE"]
[null,null,{"$f":"SUM(C36:C57)","v":0},null,null,null,null,null,null,"Distrital","Provincial","Empresa privada u ONG",null,null,null,null,null,"Otra IIEE"]
[null,null,null,"COMPO- NENTE",null,null,null,null,null,null,null,null,null,null,null,null,null,"IIEE de red educativa"]
[null,null,null,null,null,null,"ACCIÓN",null,null,null,null,null,"FRECUENCIA",null,null,null,null,"UGEL"]
[null,null,null,null,null,null,null,null,null,null,null,null,null,null,null,null,null,"DRE/GRE"]
["01",null,{"$f":"IF(M36<>\"\",1,0)","v":0},"Infraes- tructura",null,"Proyecto de inversión pública para el mejoramiento o ampliación …",null,null,null,null,null,null,null,null,null,null,null,"Espacios virtuales (webinar, talleres, etc)"]
["02",null,{"$f":"IF(M37<>\"\",1,0)","v":0},null,null,"Apoyo y asistencia técnica para el uso de recursos de mantenimiento",null,null,null,null,null,null,null,null,null,null,null,"Otro"]
["03",null,0,null,null,"Gestiones para el acceso a servicios básicos de IIEE "]
["04",null,0,null,null,"Adquisición de mobiliario y equipamiento para la IIEE"]
["05",null,0,"Aprendi-\nzajes",null,"Proyecto de inversión pública para la mejora de los aprendizajes"]
["06",null,0,null,null,"Programas de reforzamiento escolar",null,null,null,null,null,null,null,null,null,"406. ¿QUÉ TAN INTERESADO SE ENCONTRARÍA DE PARTICIPAR EN ESPACIOS EN LOS QUE SE REALICE TRABAJO"]
["07",null,0,null,null,"Apoyo con material educativo",null,null,null,null,null,null,null,null,null,null,"COLABORATIVO CON DIRECTORES DE OTRAS IIEE PARA DIALOGAR SOBRE LOS PROBLEMAS DE LA GESTIÓN"]
["08",null,0,null,null,"Apoyo a las visitas domiciliarias",null,null,null,null,null,null,null,null,null,null,"ESCOLAR?"]
["09",null,0,"Docentes",null,"Contratación de docentes"]
["10",null,0,null,null,"Talleres o cursos de capacitación",null,null,null,null,null,null,null,null,null,null,"Marque con una “X”, una opción"]
["11",null,0,"No Docentes",null,"Contratación de no docentes"]
["12",null,0,null,null,"Talleres o cursos de capacitación",null,null,null,null,null,null,null,null,null,null,null,"","Interesado",null,"Poco interesado","","Nada interesado"]
["13",null,0,"Gestión",null,"Articulación local con actores públicos y privados a nivel local"]
["14",null,0,null,null,"Atención de casos en DEMUNA"]
["15",null,0,null,null,"Articulación con UGEL y DRE de su ámbito"]
["16",null,0,null,null,"Gestiones para la instalación de servicios básicos de conectividad",null,null,null,null,null,null,null,null,null,"407. EL SERVICIO/NIVEL EDUCATIVO QUE DIRIGE, ¿DURANTE EL PRESENTE AÑO HA RECIBIDO O VIENE"]
["17",null,0,null,null,"Apoyo con alimentación para estudiantes",null,null,null,null,null,null,null,null,null,null,"RECIBIENDO APOYO DE ALGUNA EMPRESA PRIVADA O DE ALGUNA ONG EN TEMAS DE MEJORA DE"]
["18",null,0,null,null,"Vivienda y alimentación para docentes (zonas rurales, fronteras, etc)",null,null,null,null,null,null,null,null,null,null,"INFRAESTRUCTURA, MOBILIARIO, EQUIPAMIENTO, CAPACITACIÓN U OTROS?"]
["19",null,0,null,null,"Apoyo con movilidad local para estudiantes y docentes"]
["20",null,0,null,null,"Apoyo a los talleres con familias",null,null,null,null,null,null,null,null,null,null,"Sí    ","","No    ",null,"Pase a la pregunta 501"]
["21",null,0,"Recupe-\nración",null,"Promoción de acciones comunitarias para identificación de …"]
["22",null,0,null,null,"Impulso del registro nominal de estudiantes en Alerta Escuela por …"]
[null,null,null,null,null,null,null,null,null,null,{"$f":"COUNTIF(J36:L57,\"X\")","v":0},null,{"$f":"COUNTIF(M36:M57,\"3: Nunca\")","v":0}]
[null,null,null,null,null,null,null,null,null,null,null,null,null,null,null,"408. INDIQUE EL TIPO DE APOYO QUE HA RECIBIDO DE LA EMPRESA PRIVADA U ONG:"]
[null,null,"403. DURANTE EL ÚLTIMO MES, EN PROMEDIO, ¿CUÁNTAS HORAS SEMANALES, ADICIONALES A SU JORNADA LABORAL,"]
[null,null,null,"USTED CONSIDERA QUE HA DESTINADO PARA REALIZAR ACTIVIDADES RELACIONADAS A SU TRABAJO COMO",null,null,null,null,null,null,null,null,null,null,null,null,"Marque con una “X”, una o más opciones"]
[null,null,null,"DIRECTOR?"]
[null,null,null,null,null,null,null,null,null,null,null,null,null,null,null,null,"","Infraestructura"]
[null,null,null,"Horas semanales adicionales",null,null,null,null,null,null,null,null,null,null,null,null,"","Mobiliario"]
[null,null,null,null,null,null,null,null,null,null,null,null,null,null,null,null,"","Equipamiento"]
[null,null,"404. COMO DIRECTOR/A DE ESTE SERVICIO/NIVEL EDUCATIVO, ¿CUÁNTO TIEMPO DE SU DÍA TOMA REALIZAR ACTIVIDADES",null,null,null,null,null,null,null,null,null,null,null,null,null,"","Capacitación"]
[null,null,null," ADMINISTRATIVAS?  (CONSIDERE HORAS CRONOLÓGICAS)",null,null,null,null,null,null,null,null,null,null,null,null,"","Otro",null,""]
[null,null,null,"Marque con una “X”, una opción"]
[]
[null,null,null,null,null,"Menos de una hora"]
[null,null,null,null,null,"Entre 1 y 3 horas"]
[null,null,null,null,null,"Entre 4 y 6 horas"]
[null,null,null,null,null,"Más de 6 horas"]

{"sheet":"C500","index":5,"n_rows":153,"n_cols":23,"rows_kept":153,"cut":false,"hidden":false,"merged":[[108,3,108,7],[108,8,108,10],[108,11,108,18],[108,19,108,21],[109,3,109,7],[109,8,109,10],[109,11,109,18],[109,19,109,21],[106,19,106,21],[107,3,107,7],[107,8,107,10],[107,11,107,18],[107,19,107,21],[84,6,84,7],[84,8,84,9],[87,14,87,16],[106,3,106,7],[106,8,106,10],[106,11,106,18],[79,13,83,15],[79,17,79,19],[79,20,79,22],[80,6,80,7],[80,16,82,16],[80,17,82,17],[80,18,83,18],[80,19,82,19],[80,20,82,20],[80,21,83,21],[80,22,82,22],[82,6,82,7],[82,8,82,9],[83,6,83,7],[83,8,83,9],[46,18,46,19],[57,16,57,19],[64,3,64,8],[68,4,68,8],[78,8,78,10],[46,4,46,6],[46,8,46,9],[46,11,46,13],[46,14,46,15],[46,16,46,17],[45,8,45,9],[45,11,45,13],[45,14,45,15],[45,16,45,17],[45,18,45,19],[44,8,44,9],[44,11,44,13],[44,14,44,15],[44,16,44,17],[44,18,44,19],[43,8,43,9],[43,11,43,13],[43,14,43,15],[43,16,43,17],[43,18,43,19],[42,8,42,9],[42,11,42,13],[42,14,42,15],[42,16,42,17],[42,18,42,19],[38,21,40,21],[39,8,39,9],[39,16,39,17],[39,18,39,19],[41,8,41,9],[41,11,41,13],[41,14,41,15],[41,16,41,17],[41,18,41,19],[1,5,1,20],[2,5,2,20],[37,7,38,7],[38,3,39,6],[38,11,40,13],[38,14,40,15],[38,20,40,20]]}
[]
[null,null,null,null,null,"CENSO EDUCATIVO 2024"]
[null,null,null,null,null,"MATRÍCULA, DOCENTES Y RECURSOS"]
[]
[]
[]
[null,"500. GESTIÓN DE RIESGO DE DESASTRES"]
[]
[null,null,"501. SOBRE LA DEFENSA NACIONAL Y LA GESTIÓN DEL RIESGO DE DESASTRES EN ESTE SERVICIO/NIVEL EDUCATIVO, ATIENDA LAS SIGUIENTES PREGUNTAS:"]
[]
[null,null,null,"Seleccione “Si” o “No” según corresponda en atención a cada pregunta."]
[]
[null,null,null,null,"Documentos de Gestión",null,null,null,null,null,"Respuesta"]
[]
[null,null,null,null,null,null,null,null,null,null,"SI - NO"]
[null,null,null,"¿La IE cuenta con un croquis con rutas de evacuación?"]
[null,null,null,"¿La IE cuenta con planos de señalización con rutas de evacuación?"]
[]
[null,null,null,"Nota:"]
[null,null,null,"La comunidad educativa está conformada por estudiantes, padres de familia, profesores, directivos, "]
[null,null,null,"administrativos, ex alumnos y miembros de la comunidad local."]
[]
[]
[]
[null,null,"502. EN EL PRESENTE AÑO, LOS MIEMBROS DE ESTE SERVICIO/NIVEL EDUCATIVO, ¿HAN SIDO CAPACITADOS Y CERTIFICADOS EN MATERIA DE GESTIÓN INTEGRAL \nDEL RIESGO DE DESASTRES?"]
[]
[null,null,null,"Sí  ",null,null,null,"No  "]
[]
[]
[null,null,null,null,null,"Alguna de ellos fue desarrollada por:"]
[]
[null,null,null,null,null,null,null,"SI - NO"]
[null,null,null,null,null,"DRE/GRE"]
[null,null,null,null,null,"UGEL"]
[]
[null,null,null,"Complete la tabla"]
[]
[null,null,null,null,null,null,null,"¿Se realizó?","Cantidad de personas capacitadas",null,null,null,null,null,null,null,"Cantidad de personas certificadas"]
[null,null,null,"Tipo de Capacitación",null,null,null,null,null,null,null," N° de  adminis-  trativos",null,null," N° de capacitados\nque pertenecen a la brigada de EA y GRD",null,null,null,null,null," N° de adminis-  trativos"," N° de capacitados\nque pertenecen a la brigada de EA y GRD"]
[null,null,null,null,null,null,null,null," N° de directores",null," N° de docentes",null,null,null,null,null," N° de directores",null," N° de docentes"]
[null,null,null,null,null,null,null,"SI - NO"]
[null,null,"01","Curso",null,null,null,null,null,null,null,null,null,null,null,null,null,null,null,null,null,null,{"$f":"SUM(I42:V42)","v":0}]
[null,null,"02","Taller de capacitación",null,null,null,null,null,null,null,null,null,null,null,null,null,null,null,null,null,null,{"$f":"SUM(I43:V43)","v":0}]
[null,null,"03","Reuniones de trabajo institucionales",null,null,null,null,null,null,null,null,null,null,null,null,null,null,null,null,null,null,0]
[null,null,"04","Foro",null,null,null,null,null,null,null,null,null,null,null,null,null,null,null,null,null,null,0]
[null,null,"05","Webinar",null,null,null,null,null,null,null,null,null,null,null,null,null,null,null,null,null,null,0]
[null,null,"06","Otros",null,null,null,null,null,null,null,null,null,null,null,null,null,null,null,null,null,null,0]
[null,null,null,null,null,null,null,{"$f":"COUNTIF(H42:H47,\"SI\") + COUNTIF(H42:H47,\"NO\")","v":0}]
[]
[null,null,"503. EN EL AÑO 2023, ANTE LA DETECCIÓN DEL PELIGRO INMINENTE, EMERGENCIA O DESASTRE,",null,null,null,null,null,null,null,null,null,null,"504. EN EL PRESENTE AÑO, ESTE SERVICIO/NIVEL EDUCATIVO, ¿HA PARTICIPADO EN CAMPAÑAS "]
[null,null,null,"¿ESTE SERVICIO/NIVEL EDUCATIVO REPORTA AL ESPACIO DE MONITOREO Y SEGUIMIENTO",null,null,null,null,null,null,null,null,null,null,"COMUNICACIONALES DE GESTIÓN DE RIESGO DE DESASTRES?"]
[null,null,null,"SECTORIAL (EMSS) DE LA UGEL?"]
[null,null,null,null,null,null,null,null,null,null,null,null,null,null,"Sí  ",null,null,null,"No  "]
[null,null,null,"Sí  ",null,null,"¿Ha sido capacitado sobre el proceso a seguir para reportar?"]
[]
[null,null,null,null,null,null,null,"Sí  ",null,null,null,null,null,null,null,null,"Indique, ¿En qué acciones participó o recibió?"]
[]
[null,null,null,null,null,null,null,"No  ",null,null,null,null,null,null,null,null,"ITEMS",null,null,null,"Marcar con X"]
[null,null,null,null,null,null,null,null,null,null,null,null,null,null,null,null,"Pasacalle"]
[null,null,null,null,null,null,null,"No Sabe  ",null,null,null,null,null,null,null,null,"Feria"]
[null,null,null,"No  ","",null,null,null,null,null,null,null,null,null,null,null,"Activaciones motivadoras"]
[null,null,null,null,null,null,null,null,null,null,null,null,null,null,null,null,"Conferencias"]
[null,null,null,null,null,null,null,null,null,null,null,null,null,null,null,null,"Recepción de afiches"]
[null,null,null,"¿Por qué?",null,null,"Marque con una “X”, una opción",null,null,null,null,null,null,null,null,null,"Recepción murales de GRD"]
[null,null,null,"ITEMS",null,null,null,null,null,"Marcar con X",null,null,null,null,null,null,"Post en redes sociales"]
[null,null,null,"No se tuvo emergencia en territorio",null,null,null,null,null,null,null,null,null,null,null,null,"Post radiales"]
[null,null,null,"No se cuenta con los instrumentos y/o herramientas"]
[null,null,null,"No se conoce el procedimiento"]
[null,null,null,"Otro"]
[]
[]
[null,null,"505. ESTE SERVICIO/NIVEL EDUCATIVO, ¿CUENTA CON LA BRIGADA DE EDUCACIÓN AMBIENTAL ",null,null,null,null,null,null,null,null,null,null,"506. ESTE SERVICIO/NIVEL EDUCATIVO, ¿CUENTA CON ALGUNA EXPERIENCIA EXITOSA O BUENA PRÁCTICA"]
[null,null,null," Y GESTIÓN DE RIESGO DE DESASTRES?",null,null,null,null,null,null,null,null,null,null," DOCENTE Y/O GESTIÓN  ESCOLAR ENMARCADAS EN ALGUNA DE LAS LÍNEAS ESTRATÉGICAS?"]
[]
[null,null,null,"Sí",null,null,null,"No  ",null,null,null,null,null,null,"Sí  ",null,null,null,"No  "]
[]
[]
[null,null,null,null,"Documento",null,null,"Resolución",null,null,null,null,null,null,"Complete la tabla"]
[null,null,null,null,null,null,null,"Otro",null,null,null,null,null,"Seleccione “Sí” o “No” para cada línea estratégica e ingrese los años según corresponda"]
[null,null,null,null,null,null,null,null,null,null,null,null,null,"Línea estratégica",null,null,null,"Experiencia exitosa",null,null,"Buena práctica docente y/o Gestión escolar"]
[null,null,null,null,"Número",null,null,null,null,null,null,null,null,null,null,null,null,"¿Cuenta con experiencia exitosa?","Año de la experiencia exitosa","Se socializó con otras entidades","¿Cuenta con buena práctica docente y Gestión escolar?","Año de la buena práctica docente y/o Gestión escolar","Se socializó con otras entidades"]
[]
[null,null,null,null,null,null,"Desde:",null,"Hasta:"]
[null,null,null,null,"Vigencia",null,"DD/MM/AAAA",null,"DD/MM/AAAA",null,null,null,null,null,null,null,null,"SI / NO",null,"SI / NO","SI / NO",null,"SI / NO"]
[null,null,null,null,null,null,null,null,null,null,null,null,"01","Seguridad y Defensa Nacional"]
[null,null,null,null,null,null,null,null,null,null,null,null,"02","Gestión del Riesgo de Desastre"]
[null,null,null,null,null,null,null,null,null,null,null,null,"03","Adaptación al cambio climático"]
[null,null,null,null,null,null,null,null,null,null,null,null,"04","Otro"]
[null,null,null,null,null,null,null,null,null,null,null,null,null,null,null,null,null,{"$f":"COUNTIF(R85:R88,\"SI\")+COUNTIF(R85:R88,\"NO\")","v":0},null,null,{"$f":"COUNTIF(U85:U88,\"SI\")+COUNTIF(U85:U88,\"NO\")","v":0},"",{"$f":"CONCATENATE(R88,U88)","v":""}]
[null,null,null,null,null,null,null,null,null,null,null,null,null,null,null,null,null,null,null,null,null,"",""]
[null,null,"507. ESTE SERVICIO/NIVEL EDUCATIVO, ¿PARTICIPÓ EN LOS SIMULACROS CONVOCADOS POR MINEDU Y/O INDECI? "]
[]
[]
[null,null,null,"Sí  ",null,null,null,"No  "]
[]
[]
[null,null,null,null,null,"Complete la tabla"]
[]
[null,null,null,null,null,null,"ITEMS",null,null,"Marcar con X"]
[null,null,null,null,null,"Primer Simulacro"]
[null,null,null,null,null,"Segundo Simulacro"]
[null,null,null,null,null,"Tercer Simulacro"]
[]
[]
[null,"DATOS DEL DIRECTOR(A) / RESPONSABLE DEL LLENADO DE LA CÉDULA"]
[]
[null,null,null,"NOMBRES Y APELLIDOS",null,null,null,null,"CARGO",null,null,"CORREO ELECTRÓNICO",null,null,null,null,null,null,null,"TELÉFONO"]
[]
[]
[]
[]
[]
[]
[]
["DIRECTOR(A)"]
["SUB DIRECTOR(A)"]
["DOCENTE"]
["COORDINADOR(A)"]
["ASESOR"]
["ADMINISTRATIVO"]
["ASISTENTE"]
["AUXILIAR"]
["SECRETARIA(O)"]
["ESTADÍSTICO"]
["ESPECIALISTA"]
["BIBLIOTECARIO"]
["CARE"]
["COMANDANTE PNP"]
["CONTADOR"]
["DAIP"]
["DIGITADOR(A)"]
["GERENTE"]
["JEFE ACADÉMICO"]
["JEFE ADMINISTRATIVO"]
["JEFE DE ÁREA"]
["JEFE DE LABORATORIO"]
["JEFE DE PERSONAL"]
["JEFE DE SEDE"]
["JEFE DE UNIDAD"]
["OFICINISTA"]
["OPERADOR DE SISTEMAS"]
["PERSONAL DE SERVICIO"]
["PROGRAMADOR"]
["PROMOTOR(A)"]
["PSICOLOGO"]
["REGISTRADOR(A)"]
["REPRESENTANTE LEGAL"]
["SOPORTE TECNOLOGICO"]
["TÉCNICO ADMINISTRATIVO"]
["TESORERO(A)"]
["TRABAJADOR SOCIAL"]
["TUTOR"]
["OTROS"]

{"sheet":"Enviar","index":6,"n_rows":9,"n_cols":4,"rows_kept":9,"cut":false,"hidden":false,"merged":[[0,1,0,4],[1,1,1,4]]}
[null,"CENSO EDUCATIVO 2024"]
[null,"MATRÍCULA, DOCENTES Y RECURSOS"]
[]
[]
[null,null,"Paso 1:","Realice el ENVÍO con su clave EOL."]
[]
[null,null,"Paso 2:","Una vez realizado el ENVÍO,  Revise su constancia de envio."]
[]
[null,null,"  ADVERTENCIA","ASEGÚRESE DE REGISTRAR TODA LA INFORMACIÓN DEL NIVEL INFORMANTE"]